bitfinex-derivatives/quotes_BNBF0:USTF0_20251010
["timestamp","ask_amount","ask_price","bid_price","bid_amount"]
[1760137203662,8.67636419,1108.5,1095.0,6.71223323]
[1760137205063,10.411637,1109.1,1093.5,10.0683498]
[1760137205366,15.1836373,1111.1,1089.5,14.6830102]
[1760137214770,6.93707177,1120.1,1103.9,6.73482131]
[1760137215069,6.93707177,1120.1,1105.1,6.73482131]
[1760137216773,6.93707177,1118.2,1105.1,6.73482131]
[1760137220473,6.93707177,1118.2,1104.2,15.15334795]
[1760137220673,6.93707177,1118.2,1104.2,6.73482131]
[1760137222077,6.93707177,1117.5,1104.2,6.73482131]
[1760137224684,6.93707177,1117.5,1103.2,8.41852664]
[1760137225885,6.93707177,1117.5,1102.5,6.73482131]
[1760137227487,6.93707177,1116.9,1102.5,6.73482131]
[1760137228688,6.93707177,1116.9,1102.7,6.73482131]
[1760137232890,6.93707177,1116.5,1102.7,6.73482131]
[1760137233290,6.93707177,1117.2,1102.7,6.73482131]
[1760137234092,6.93707177,1117.2,1103.1,6.73482131]
[1760137236593,6.93707177,1117.2,1101.7,8.41852664]
[1760137237294,6.93707177,1117.2,1101.2,6.73482131]
[1760137237891,6.93707177,1117.2,1100.5,6.73482131]
[1760137238492,8.67133971,1115.4,1100.5,6.73482131]
[1760137240095,8.67133971,1115.4,1100.2,6.73482131]
[1760137240695,8.67133971,1115.4,1097.4,11.7859373]
[1760137240696,8.67133971,1115.4,1098.6,10.1022319]
[1760137241292,8.67133971,1115.4,1098.3,6.73482131]
[1760137242296,8.67133971,1115.4,1097.8,6.73482131]
[1760137243895,8.67133971,1115.8,1097.8,6.73482131]
[1760137244193,10.4056076,1115.2,1097.8,6.73482131]
[1760137244394,6.93707177,1114.3,1097.8,6.73482131]
[1760137246396,6.93707177,1116.8,1097.8,6.73482131]
[1760137247701,6.93707177,1116.8,1098.6,6.73482131]
[1760137248099,6.93707177,1115.6,1098.6,6.73482131]
[1760137252106,6.93707177,1115.6,1097.9,6.73482131]
[1760137253407,6.93707177,1115.6,1097.4,6.73482131]
[1760137254109,6.93707177,1115.6,1097.5,6.73482131]
[1760137254306,6.93707177,1114.5,1097.5,6.73482131]
[1760137255007,6.93707177,1114.5,1098.1,6.73482131]
[1760137255610,6.93707177,1114.5,1096.0,6.73482131]
[1760137257812,6.93707177,1114.8,1096.0,6.73482131]
[1760137259109,10.4056076,1117.0,1094.9,11.7859373]
[1760137259411,13.0070095,1121.3,1090.2,14.7324216]
[1760137259611,13.0070095,1121.3,1084.3,10.1022319]
[1760137260814,6.74031567,1114.0,1100.4,6.7160786]
[1760137263111,8.42539459,1114.8,1100.4,6.7160786]
[1760137263912,6.74031567,1116.5,1100.4,6.7160786]
[1760137264615,6.74031567,1115.7,1100.4,6.7160786]
[1760137265112,6.74031567,1116.2,1100.4,6.7160786]
[1760137266211,6.74031567,1116.2,1101.8,6.7160786]
[1760137266811,8.42539459,1116.5,1101.8,6.7160786]
[1760137267015,11.7955524,1118.4,1101.8,6.7160786]
[1760137271219,11.7955524,1118.4,1101.0,6.7160786]
[1760137271816,11.7955524,1118.4,1100.7,6.7160786]
[1760137272316,6.74031567,1115.4,1100.7,6.7160786]
[1760137273222,6.74031567,1115.9,1100.7,6.7160786]
[1760137277625,6.74031567,1115.9,1100.9,6.7160786]
[1760137278527,6.74031567,1115.2,1100.9,6.7160786]
[1760137278830,6.74031567,1116.3,1100.9,6.7160786]
[1760137283032,6.74031567,1116.3,1100.1,8.39509825]
[1760137283033,6.74031567,1116.3,1102.7,6.7160786]
[1760137283933,6.74031567,1116.3,1101.2,6.7160786]
[1760137284230,6.74031567,1115.5,1101.2,6.7160786]
[1760137284830,6.74031567,1115.5,1098.1,6.7160786]
[1760137289743,6.74031567,1115.5,1099.1,6.7160786]
[1760137290037,6.74031567,1112.5,1099.1,6.7160786]
[1760137290935,8.42539459,1113.7,1098.2,8.39509825]
[1760137291136,14.7444405,1121.9,1094.3,14.6914219]
[1760137292237,6.9379842,1111.6,1098.0,6.88436159]
[1760137293438,6.9379842,1111.6,1097.9,6.88436159]
[1760137295637,6.9379842,1111.6,1096.6,6.88436159]
[1760137296441,6.9379842,1111.6,1094.7,6.88436159]
[1760137297346,6.9379842,1110.9,1094.7,6.88436159]
[1760137298944,6.9379842,1110.9,1093.6,6.88436159]
[1760137299644,6.9379842,1110.9,1093.1,6.88436159]
[1760137300048,6.9379842,1110.9,1093.0,6.88436159]
[1760137300244,6.9379842,1110.9,1092.7,6.88436159]
[1760137300748,6.9379842,1110.9,1089.4,12.0476327]
[1760137301049,6.9379842,1110.9,1090.9,6.88436159]
[1760137302345,6.9379842,1110.9,1087.7,6.88436159]
[1760137302749,6.9379842,1105.1,1087.7,6.88436159]
[1760137304045,6.9379842,1105.8,1087.7,6.88436159]
[1760137304346,15.61046445,1107.6,1087.7,6.88436159]
[1760137304750,6.9379842,1107.6,1087.7,6.88436159]
[1760137305045,10.4069763,1108.1,1087.7,6.88436159]
[1760137305647,6.9379842,1108.8,1087.7,6.88436159]
[1760137307852,6.9379842,1108.8,1088.2,6.88436159]
[1760137308451,6.9379842,1108.8,1088.0,6.88436159]
[1760137310853,6.9379842,1109.6,1088.0,6.88436159]
[1760137311457,8.67248025,1110.6,1088.0,6.88436159]
[1760137313154,8.67248025,1110.6,1089.4,8.60545199]
[1760137313855,8.67248025,1110.6,1086.9,6.88436159]
[1760137316258,8.67248025,1109.7,1086.9,6.88436159]
[1760137318860,10.4069763,1110.6,1086.9,6.88436159]
[1760137319156,6.9379842,1111.9,1086.9,6.88436159]
[1760137319659,6.9379842,1110.3,1089.0,6.88436159]
[1760137320561,15.61046445,1110.3,1089.0,6.88436159]
[1760137320861,8.67248025,1110.3,1089.0,6.88436159]
[1760137321059,6.9379842,1110.7,1089.0,6.88436159]
[1760137322659,6.9379842,1111.5,1089.0,6.88436159]
[1760137324969,6.9379842,1111.5,1090.1,6.88436159]
[1760137326566,6.9379842,1111.5,1090.0,6.88436159]
[1760137327970,6.9379842,1111.5,1089.3,6.88436159]
[1760137328266,6.9379842,1109.7,1089.3,6.88436159]
[1760137330067,6.9379842,1110.3,1089.3,6.88436159]
[1760137332972,6.9379842,1110.3,1088.3,8.60545199]
[1760137333471,6.9379842,1110.3,1088.7,8.60545199]
[1760137335472,6.9379842,1111.8,1088.7,8.60545199]
[1760137335671,6.9379842,1111.6,1088.7,8.60545199]
[1760137338273,6.9379842,1111.6,1090.0,6.88436159]
[1760137339377,6.9379842,1111.6,1089.5,8.60545199]
[1760137341178,6.9379842,1110.7,1089.5,8.60545199]
[1760137341974,10.4069763,1111.0,1089.5,8.60545199]
[1760137344478,0.15809989,1105.7,1090.5,8.60545199]
[1760137344776,0.15809989,1105.7,1093.1,6.88436159]
[1760137345280,0.15809989,1105.7,1092.8,6.88436159]
[1760137346176,0.15809989,1105.7,1090.6,6.88436159]
[1760137351384,0.15809989,1105.7,1091.2,8.60545199]
[1760137351686,0.15809989,1105.7,1092.2,6.88436159]
[1760137356096,6.9379842,1104.9,1092.2,6.88436159]
[1760137356892,6.9379842,1104.9,1093.0,6.88436159]
[1760137361499,6.9379842,1105.5,1093.0,6.88436159]
[1760137362298,6.9379842,1105.5,1093.6,6.88436159]
[1760137364800,0.15809989,1105.7,1093.6,6.88436159]
[1760137368505,0.15809989,1105.7,1096.0,6.88436159]
[1760137369202,0.15809989,1105.7,1096.7,10.3265423]
[1760137369403,0.15809989,1105.7,1097.2,6.88436159]
[1760137372504,0.15809989,1105.7,1096.7,10.3265423]
[1760137372709,0.15809989,1105.7,1094.9,12.0476327]
[1760137373006,0.15809989,1105.7,1093.6,8.60545199]
[1760137373505,0.15809989,1105.7,1094.2,8.60545199]
[1760137375909,0.15809989,1105.7,1095.1,6.88436159]
[1760137381711,0.15809989,1105.7,1096.1,6.88436159]
[1760137385214,0.15809989,1105.7,1095.5,6.88436159]
[1760137390518,0.15809989,1105.7,1097.3,6.88436159]
[1760137394716,0.15809989,1105.7,1098.3,6.88436159]
[1760137394917,0.15809989,1105.7,1097.6,8.60545199]
[1760137395120,0.15809989,1105.7,1096.3,6.88436159]
[1760137400526,0.15809989,1105.7,1096.9,6.88436159]
[1760137402627,0.15809989,1105.7,1096.5,6.88436159]
[1760137404827,0.15809989,1105.7,1095.6,15.48981358]
[1760137408331,0.15809989,1105.7,1096.1,8.60545199]
[1760137409137,0.15809989,1105.7,1096.6,8.60545199]
[1760137410436,0.15809989,1105.7,1097.0,6.88436159]
[1760137410937,0.15809989,1105.7,1097.2,6.88436159]
[1760137411433,0.15809989,1105.7,1096.4,15.48981358]
[1760137416037,0.15809989,1105.7,1096.4,6.88436159]
[1760137416742,0.15809989,1105.7,1094.5,6.88436159]
[1760137419843,0.15809989,1105.7,1095.7,6.88436159]
[1760137420146,0.15809989,1105.7,1095.1,6.88436159]
[1760137425547,0.15809989,1105.7,1095.3,6.88436159]
[1760137430954,0.15809989,1105.7,1097.2,6.88436159]
[1760137436356,0.15809989,1105.7,1098.0,6.88436159]
[1760137441757,0.15809989,1105.7,1098.7,6.88436159]
[1760137442861,0.15809989,1105.7,1099.3,6.88436159]
[1760137448268,0.15809989,1105.7,1100.9,6.88436159]
[1760137454071,0.15809989,1105.7,1101.4,6.88436159]
[1760137455872,6.9379842,1114.8,1101.4,6.88436159]
[1760137458975,6.9379842,1114.8,1098.1,6.88436159]
[1760137459279,0.1572011,1111.5,1098.1,6.88436159]
[1760137464579,0.1572011,1111.5,1097.9,6.88436159]
[1760137467781,0.1572011,1111.5,1098.9,6.88436159]
[1760137468185,0.1572011,1111.5,1097.6,6.88436159]
[1760137470881,0.1572011,1111.5,1097.0,6.88436159]
[1760137476686,0.1572011,1111.5,1096.0,8.60545199]
[1760137476687,0.1572011,1111.5,1097.6,6.88436159]
[1760137479593,0.1572011,1111.5,1097.2,6.88436159]
[1760137484901,0.1572011,1111.5,1096.6,6.88436159]
[1760137485897,7.0951853,1111.5,1096.6,6.88436159]
[1760137488098,0.1572011,1111.5,1096.6,6.88436159]
[1760137489999,0.1572011,1111.5,1096.1,6.88436159]
[1760137496014,0.1572011,1111.5,1096.0,6.88436159]
[1760137498514,0.1572011,1111.5,1094.8,8.60545199]
[1760137498814,0.1572011,1111.5,1090.3,15.0595409]
[1760137499715,0.1572011,1111.5,1087.9,0.15775159]
[1760137500117,0.1572011,1111.5,1087.4,0.1576319]
[1760137500617,0.1572011,1111.5,1087.2,0.15747853]
[1760137501617,0.1572011,1111.5,1087.1,0.15663187]
[1760137502121,0.1572011,1111.5,1095.9,6.65929923]
[1760137502122,6.94227956,1110.7,1095.9,6.65929923]
[1760137502918,6.94227956,1111.3,1095.9,6.65929923]
[1760137506120,6.94227956,1111.0,1095.9,6.65929923]
[1760137507420,6.94227956,1111.0,1096.9,6.65929923]
[1760137508827,6.94227956,1111.1,1096.9,6.65929923]
[1760137509528,6.94227956,1111.1,1095.8,8.32412403]
[1760137509728,6.94227956,1111.1,1095.6,6.65929923]
[1760137510026,6.94227956,1111.1,1094.5,6.65929923]
[1760137510724,6.94227956,1111.1,1094.1,6.65929923]
[1760137511631,6.94227956,1111.1,1094.5,6.65929923]
[1760137514233,6.94227956,1109.4,1094.5,6.65929923]
[1760137516833,8.67784945,1110.3,1096.3,8.32412403]
[1760137517031,6.94227956,1110.9,1097.3,6.65929923]
[1760137520431,6.94227956,1110.9,1096.5,6.65929923]
[1760137522237,6.94227956,1110.9,1095.3,6.65929923]
[1760137525837,6.94227956,1110.9,1094.7,9.98894884]
[1760137527638,6.94227956,1108.8,1094.7,9.98894884]
[1760137528237,6.94227956,1108.8,1094.6,6.65929923]
[1760137532841,6.94227956,1107.6,1094.6,6.65929923]
[1760137536236,6.94227956,1108.3,1094.6,6.65929923]
[1760137536441,10.4134193,1108.0,1094.6,6.65929923]
[1760137538944,10.4134193,1108.0,1096.5,6.65929923]
[1760137540541,10.4134193,1108.0,1095.7,6.65929923]
[1760137541545,8.67784945,1107.8,1095.7,6.65929923]
[1760137544243,6.94227956,1107.6,1095.7,6.65929923]
[1760137544946,6.94227956,1107.6,1096.1,6.65929923]
[1760137546848,6.94227956,1107.7,1096.1,6.65929923]
[1760137548449,6.94227956,1107.7,1094.5,8.32412403]
[1760137549250,6.94227956,1107.7,1093.2,6.65929923]
[1760137550054,6.94227956,1107.7,1092.5,6.65929923]
[1760137551957,6.94227956,1106.3,1092.5,6.65929923]
[1760137552257,8.67784945,1105.9,1092.5,6.65929923]
[1760137553658,8.67784945,1105.9,1092.2,6.65929923]
[1760137557559,15.62012901,1107.3,1092.2,6.65929923]
[1760137558158,6.94227956,1107.3,1092.2,6.65929923]
[1760137558961,6.94227956,1107.3,1093.4,6.65929923]
[1760137559257,6.94227956,1107.3,1092.5,6.65929923]
[1760137559763,6.94227956,1107.0,1092.5,6.65929923]
[1760137561060,6.94227956,1106.7,1092.5,6.65929923]
[1760137561863,6.94227956,1106.7,1093.4,9.98894884]
[1760137563063,6.94227956,1107.0,1093.4,9.98894884]
[1760137566860,6.94227956,1107.0,1094.4,6.65929923]
[1760137568566,6.94227956,1106.8,1094.4,6.65929923]
[1760137570762,6.94227956,1106.8,1093.6,8.32412403]
[1760137571668,6.94227956,1106.8,1092.8,6.65929923]
[1760137571867,6.94227956,1106.8,1092.2,6.65929923]
[1760137573666,2.19736031,1102.2,1096.7,0.63190715]
[1760137573971,2.19736031,1102.2,1096.8,0.55775524]
[1760137574173,2.19736031,1102.2,1096.9,0.39937869]
[1760137574368,2.19736031,1102.2,1096.6,0.63190715]
[1760137574672,1.31809412,1101.3,1096.6,0.63190715]
[1760137574874,1.31809412,1101.2,1096.6,0.63190715]
[1760137575171,1.31809412,1101.9,1096.3,0.63190715]
[1760137575475,1.31809412,1101.4,1096.2,0.63190715]
[1760137575670,1.31809412,1101.4,1096.3,0.63190715]
[1760137575973,2.19736031,1102.7,1096.6,0.63190715]
[1760137576176,2.19736031,1103.0,1096.7,0.63190715]
[1760137576478,2.19736031,1103.4,1097.9,0.63190715]
[1760137576771,2.19736031,1103.4,1097.8,0.63190715]
[1760137577077,3.07630444,1104.0,1097.7,0.47360373]
[1760137577272,3.07630444,1104.0,1096.8,0.84254287]
[1760137577472,4.39472063,1104.9,1097.1,0.84254287]
[1760137577673,4.39472063,1104.9,1097.0,0.84254287]
[1760137578270,4.39472063,1104.9,1096.7,0.84254287]
[1760137578470,3.07630444,1104.1,1096.9,0.84254287]
[1760137578675,3.07630444,1104.1,1095.7,0.84254287]
[1760137578873,3.07630444,1104.1,1095.8,0.84254287]
[1760137579076,3.07630444,1104.1,1096.0,0.84254287]
[1760137579275,3.07630444,1104.1,1095.9,0.84254287]
[1760137579474,3.07630444,1102.9,1095.9,0.84254287]
[1760137579877,2.19565293,1102.3,1095.9,0.84254287]
[1760137580177,2.19565293,1102.3,1096.0,0.68407184]
[1760137580378,2.19565293,1102.3,1095.7,1.26381431]
[1760137580677,2.19565293,1102.3,1095.8,1.26381431]
[1760137580877,2.19565293,1102.3,1095.7,1.26381431]
[1760137581075,2.19565293,1102.2,1095.9,1.26381431]
[1760137581274,2.19565293,1102.5,1096.2,1.26381431]
[1760137581474,2.19565293,1102.8,1096.1,1.26381431]
[1760137581777,2.19565293,1102.8,1095.9,1.26381431]
[1760137581976,2.19565293,1103.0,1095.8,1.26381431]
[1760137582272,2.19565293,1103.0,1095.7,1.26381431]
[1760137582474,2.19565293,1102.7,1095.8,1.26381431]
[1760137582678,2.19565293,1102.7,1095.7,1.26381431]
[1760137582875,2.19565293,1102.7,1095.8,1.26381431]
[1760137583075,0.15838412,1101.0,1095.9,1.26381431]
[1760137583274,0.15838412,1101.0,1096.5,1.26381431]
[1760137583580,2.19565293,1105.0,1096.8,1.10539811]
[1760137583780,2.19565293,1105.0,1094.7,2.10635718]
[1760137583976,2.19565293,1105.0,1095.3,2.10635718]
[1760137584180,2.19565293,1102.8,1095.0,2.10635718]
[1760137584679,2.19565293,1102.2,1094.5,2.10635718]
[1760137585375,2.19565293,1102.0,1094.3,2.10635718]
[1760137585780,2.19565293,1102.5,1093.7,2.10635718]
[1760137586181,2.19565293,1101.8,1094.1,2.10635718]
[1760137586477,0.15857863,1100.4,1094.2,0.61689551]
[1760137586680,0.15857863,1100.4,1094.3,0.61689551]
[1760137586881,2.19565293,1101.7,1094.4,0.45827605]
[1760137587181,2.19565293,1101.7,1093.4,2.10635718]
[1760137587482,3.07630444,1102.2,1093.2,2.10635718]
[1760137587678,2.19565293,1102.7,1093.2,2.10635718]
[1760137587882,2.19565293,1102.0,1093.2,2.10635718]
[1760137588080,2.19565293,1102.0,1093.8,2.10635718]
[1760137588380,2.19565293,1102.4,1093.8,2.10635718]
[1760137588580,2.19565293,1102.4,1093.3,2.94890006]
[1760137588781,3.07630444,1101.9,1093.5,2.10635718]
[1760137588985,2.19565293,1101.2,1093.5,2.10635718]
[1760137589284,2.19565293,1101.2,1093.1,2.94890006]
[1760137589485,2.19565293,1101.6,1093.1,2.94890006]
[1760137589684,2.19565293,1102.3,1093.1,2.94890006]
[1760137589885,0.1586643,1099.2,1093.2,2.10635718]
[1760137590081,2.19565293,1102.3,1093.2,2.10635718]
[1760137590287,2.19565293,1102.6,1094.1,2.10635718]
[1760137590487,0.15861693,1097.8,1093.9,2.10635718]
[1760137590683,2.19565293,1101.5,1093.9,2.10635718]
[1760137590883,0.15858585,1096.9,1093.9,2.10635718]
[1760137591186,2.19565293,1102.2,1093.7,1.9477059]
[1760137591387,2.19565293,1102.2,1092.3,2.94890006]
[1760137591787,2.19565293,1101.3,1092.3,2.94890006]
[1760137592284,2.19565293,1101.9,1092.3,2.94890006]
[1760137592488,2.19565293,1101.9,1091.6,2.94890006]
[1760137592786,2.19565293,1101.0,1091.6,2.94890006]
[1760137592989,2.19565293,1101.0,1091.9,2.94890006]
[1760137593887,2.19565293,1100.3,1091.8,2.94890006]
[1760137594292,0.1588247,1098.8,1091.8,2.94890006]
[1760137594794,0.1588247,1098.8,1091.3,7.16161443]
[1760137595795,0.1588247,1098.8,1091.3,2.94890006]
[1760137595992,0.1588247,1098.8,1090.8,2.94890006]
[1760137596792,0.1588247,1098.8,1091.1,2.94890006]
[1760137597094,0.1588247,1098.8,1090.1,2.94890006]
[1760137598499,0.1588247,1098.8,1089.1,4.21271437]
[1760137598500,0.1588247,1098.8,1091.1,2.94890006]
[1760137599000,0.1588247,1098.8,1091.2,0.60704612]
[1760137599197,0.1588247,1098.8,1091.3,0.60704612]
[1760137599498,0.1588247,1098.8,1091.4,3.55594618]
[1760137599701,0.1588247,1098.8,1091.5,0.60704612]
[1760137599996,0.1588247,1098.8,1091.6,0.60704612]
[1760137600196,0.1588247,1098.8,1091.7,0.60704612]
[1760137600397,0.1588247,1098.8,1091.8,2.68902488]
[1760137600602,0.1588247,1098.8,1091.9,0.60704612]
[1760137600797,0.1588247,1098.8,1092.0,0.60704612]
[1760137601095,0.1588247,1098.8,1092.1,0.60704612]
[1760137601297,0.1588247,1098.8,1092.2,0.60704612]
[1760137601499,0.1588247,1098.8,1092.3,0.60704612]
[1760137601697,0.1588247,1098.8,1092.4,0.60704612]
[1760137601896,0.1588247,1098.8,1092.5,0.60704612]
[1760137602197,2.19565293,1100.7,1092.6,0.44819895]
[1760137602398,2.19565293,1101.6,1090.6,2.08197876]
[1760137602797,2.19565293,1101.4,1091.1,2.08197876]
[1760137602997,2.19565293,1101.5,1091.1,2.08197876]
[1760137603201,2.19565293,1101.2,1091.8,2.08197876]
[1760137603700,2.19565293,1102.0,1092.8,1.25372102]
[1760137604501,2.19565293,1102.2,1093.0,1.25372102]
[1760137604699,2.19565293,1102.2,1093.6,1.25372102]
[1760137604902,2.19565293,1102.4,1093.4,1.25372102]
[1760137605098,0.15863826,1100.1,1093.4,1.25372102]
[1760137605299,0.15863826,1100.1,1093.3,1.25372102]
[1760137605503,0.15863826,1100.1,1093.5,1.25372102]
[1760137606101,0.15863826,1100.1,1093.7,1.25372102]
[1760137606299,0.15863826,1100.1,1093.5,1.25372102]
[1760137606604,0.15863826,1100.1,1093.1,1.25372102]
[1760137606899,0.15863826,1100.1,1093.4,1.25372102]
[1760137607404,0.15863826,1100.1,1093.8,1.25372102]
[1760137607802,0.15863826,1100.1,1093.9,1.25372102]
[1760137608404,0.15863826,1100.1,1093.8,1.25372102]
[1760137608602,0.15863826,1100.1,1093.6,1.25372102]
[1760137608805,0.15863826,1100.1,1093.4,1.25372102]
[1760137609007,0.15863826,1100.1,1093.5,1.25372102]
[1760137609206,0.15863826,1100.1,1093.8,1.25372102]
[1760137609410,0.15863826,1100.1,1094.1,1.25372102]
[1760137609706,0.15863826,1100.1,1094.0,1.25372102]
[1760137609909,0.15863826,1100.1,1094.1,1.25372102]
[1760137610209,0.15863826,1100.1,1094.3,0.84059817]
[1760137610903,0.15863826,1100.1,1094.1,0.84059817]
[1760137611108,0.15863826,1100.1,1094.5,0.84059817]
[1760137611308,0.15863826,1100.1,1094.6,0.84059817]
[1760137611805,0.15863826,1100.1,1094.5,0.84059817]
[1760137612508,0.15863826,1100.1,1094.4,0.84059817]
[1760137613210,0.15863826,1100.1,1094.5,0.84059817]
[1760137613711,0.15863826,1100.1,1094.8,0.84059817]
[1760137614209,2.19565293,1102.0,1094.9,0.59702881]
[1760137614512,2.19565293,1102.0,1095.0,0.59702881]
[1760137614811,3.07630444,1102.5,1095.1,0.59702881]
[1760137615011,6.59037356,1103.2,1095.2,0.59702881]
[1760137615207,6.59037356,1103.2,1095.3,0.59702881]
[1760137615408,2.19565293,1102.9,1095.4,0.59702881]
[1760137615614,2.19565293,1102.9,1095.5,0.59702881]
[1760137615813,2.19565293,1102.4,1094.3,1.25372102]
[1760137616011,2.19565293,1102.4,1094.4,0.59554562]
[1760137616213,2.19565293,1102.4,1094.5,0.59554562]
[1760137616412,2.19565293,1102.4,1094.6,0.59554562]
[1760137616612,2.19565293,1102.4,1094.7,0.59554562]
[1760137616813,2.19565293,1102.4,1094.8,0.59554562]
[1760137617013,2.19565293,1102.1,1094.9,0.59554562]
[1760137617218,2.19565293,1102.1,1094.0,1.25372102]
[1760137617419,2.19565293,1102.0,1094.1,1.25372102]
[1760137617719,2.19565293,1102.2,1094.2,1.25372102]
[1760137618121,2.19565293,1102.6,1094.2,1.25372102]
[1760137618519,2.19565293,1102.6,1094.3,1.25372102]
[1760137618717,2.19565293,1102.4,1094.3,1.25372102]
[1760137618920,2.19565293,1102.4,1094.2,1.25372102]
[1760137619119,2.19565293,1102.1,1094.4,1.25372102]
[1760137619315,2.19565293,1102.4,1094.5,1.25372102]
[1760137619822,2.19565293,1102.4,1094.6,1.25372102]
[1760137620023,2.19565293,1102.0,1094.5,1.25372102]
[1760137620218,0.1585295,1100.5,1094.6,1.25372102]
[1760137621020,0.1585295,1100.5,1094.9,1.25372102]
[1760137621223,0.1585295,1100.5,1094.1,1.25372102]
[1760137621424,3.07630444,1103.2,1094.1,1.09521426]
[1760137621621,2.19565293,1102.4,1092.1,2.08197876]
[1760137621823,2.19565293,1102.4,1093.6,2.08197876]
[1760137622019,3.07630444,1102.7,1093.6,2.08197876]
[1760137622223,3.07630444,1102.9,1093.6,2.08197876]
[1760137622523,3.07630444,1102.9,1092.8,2.08197876]
[1760137622724,2.19565293,1102.4,1093.4,2.08197876]
[1760137622925,2.19565293,1102.4,1092.5,2.08197876]
[1760137623125,2.19565293,1101.4,1092.2,2.08197876]
[1760137623325,2.19565293,1100.9,1092.2,2.08197876]
[1760137623525,2.19565293,1100.9,1092.6,2.08197876]
[1760137623721,2.19565293,1100.4,1092.2,2.08197876]
[1760137623925,2.19565293,1100.4,1091.6,2.08197876]
[1760137624124,2.19565293,1100.3,1091.6,2.08197876]
[1760137624426,0.15878991,1098.3,1091.6,2.08197876]
[1760137624624,0.15878991,1098.3,1093.3,2.08197876]
[1760137624824,0.15878991,1098.3,1093.0,2.08197876]
[1760137625027,2.19565293,1100.1,1092.7,1.92318595]
[1760137625325,2.19565293,1100.4,1092.7,1.92318595]
[1760137625523,2.19565293,1100.4,1092.4,2.94890006]
[1760137625828,2.19565293,1099.9,1092.4,2.94890006]
[1760137626124,2.19565293,1099.9,1092.6,2.94890006]
[1760137626325,2.19565293,1099.9,1092.4,2.94890006]
[1760137626623,2.19565293,1099.6,1092.4,2.94890006]
[1760137626924,2.19565293,1100.6,1092.4,2.94890006]
[1760137627127,2.19565293,1100.7,1092.4,2.94890006]
[1760137627424,2.19565293,1100.7,1092.5,2.94890006]
[1760137627624,2.19565293,1100.2,1092.5,2.94890006]
[1760137628029,0.15881056,1098.3,1092.5,2.94890006]
[1760137628227,0.15881056,1098.3,1092.9,2.94890006]
[1760137628430,0.15881056,1098.3,1092.6,2.94890006]
[1760137628730,2.19565293,1099.3,1092.6,2.79005978]
[1760137629226,2.19565293,1099.2,1092.7,0.62063707]
[1760137629432,2.19565293,1099.2,1092.8,0.62063707]
[1760137629627,2.19565293,1098.9,1092.9,0.62063707]
[1760137629827,2.19565293,1098.9,1093.0,0.62063707]
[1760137630131,2.19565293,1098.9,1093.1,0.62063707]
[1760137630332,2.19565293,1099.2,1093.2,0.62063707]
[1760137630529,2.19565293,1099.7,1093.3,0.62063707]
[1760137630830,2.19565293,1099.8,1093.4,0.62063707]
[1760137631033,2.19565293,1100.1,1093.5,0.62063707]
[1760137631231,2.19565293,1100.1,1093.6,0.62063707]
[1760137631429,2.19565293,1100.3,1093.7,0.62063707]
[1760137631733,0.15870808,1098.5,1093.8,0.62063707]
[1760137631930,2.19565293,1100.6,1093.9,0.62063707]
[1760137632234,3.07630444,1101.1,1094.0,0.461908]
[1760137632529,3.07630444,1101.1,1091.4,4.21271437]
[1760137632733,6.59037356,1101.9,1091.4,4.21271437]
[1760137632934,2.19565293,1100.4,1092.2,4.21271437]
[1760137633334,2.19565293,1099.9,1092.2,4.21271437]
[1760137633634,2.19565293,1099.9,1092.7,4.21271437]
[1760137633933,2.19565293,1100.1,1092.7,4.21271437]
[1760137634134,2.19565293,1100.1,1093.2,2.16271487]
[1760137634530,1.3295272,1098.2,1093.2,2.16271487]
[1760137634831,1.3295272,1098.2,1092.7,6.37542924]
[1760137635030,1.3295272,1097.6,1091.7,2.16271487]
[1760137635234,1.3295272,1097.0,1092.0,2.16271487]
[1760137635434,2.19565293,1098.7,1092.0,2.16271487]
[1760137635634,2.19565293,1098.1,1091.8,2.16271487]
[1760137635834,2.19565293,1098.1,1091.7,2.16271487]
[1760137636133,2.19565293,1098.3,1091.4,2.16271487]
[1760137636334,2.19565293,1098.3,1090.8,2.16271487]
[1760137636632,7.47102507,1098.9,1091.5,3.04231181]
[1760137636830,7.47102507,1098.9,1092.0,2.16271487]
[1760137637231,4.39472063,1098.9,1093.6,0.6503754]
[1760137637434,4.39472063,1098.9,1093.4,0.6503754]
[1760137637734,4.39472063,1098.9,1093.2,0.6503754]
[1760137638035,4.39472063,1098.9,1094.0,0.49145605]
[1760137638232,4.39472063,1101.4,1093.9,0.49145605]
[1760137638435,3.07630444,1100.8,1091.9,2.16271487]
[1760137638638,3.07630444,1100.3,1092.7,2.16271487]
[1760137639136,3.07630444,1100.8,1092.8,2.16271487]
[1760137639838,3.07630444,1100.3,1093.8,2.16271487]
[1760137640538,3.07630444,1100.3,1093.1,2.16271487]
[1760137640837,3.07630444,1100.9,1093.1,2.16271487]
[1760137641036,0.15879933,1098.6,1093.7,2.16271487]
[1760137641334,3.07630444,1100.9,1093.7,2.00396226]
[1760137641637,3.07630444,1100.9,1094.1,1.29175122]
[1760137641834,3.07630444,1100.9,1093.9,1.29175122]
[1760137642036,3.07630444,1100.2,1093.9,1.29175122]
[1760137642240,3.07630444,1101.3,1094.3,1.29175122]
[1760137642645,3.07630444,1101.3,1093.9,1.29175122]
[1760137642841,3.07630444,1101.3,1094.1,1.29175122]
[1760137643040,4.39472063,1100.3,1094.3,1.29175122]
[1760137643244,3.07630444,1100.0,1094.4,1.29175122]
[1760137643442,3.07630444,1100.0,1094.2,1.29175122]
[1760137643743,3.07630444,1100.0,1094.4,1.29175122]
[1760137643948,3.07630444,1100.0,1093.8,1.29175122]
[1760137644148,3.07630444,1100.0,1094.0,0.86453675]
[1760137644448,7.47102507,1100.3,1094.1,0.53532239]
[1760137644749,7.47102507,1100.3,1094.1,0.86453675]
[1760137644945,4.39472063,1100.3,1094.3,0.86453675]
[1760137645145,3.07630444,1100.6,1094.4,0.86453675]
[1760137645448,3.07630444,1101.1,1094.7,0.86453675]
[1760137645651,0.88598528,1096.9,1092.9,0.86453675]
[1760137645847,0.88598528,1097.0,1092.9,0.86453675]
[1760137646049,0.88598528,1097.2,1092.7,0.86453675]
[1760137646251,0.88598528,1097.4,1092.9,0.86453675]
[1760137646453,0.88598528,1096.9,1092.9,0.86453675]
[1760137646646,1.32897793,1097.3,1092.9,0.86453675]
[1760137646850,1.32897793,1097.3,1092.8,0.86453675]
[1760137647248,1.32897793,1097.3,1093.1,0.86453675]
[1760137647552,0.15893169,1096.2,1093.1,0.705588]
[1760137647747,1.32897793,1097.3,1092.6,1.29175122]
[1760137647951,1.32897793,1097.3,1092.3,1.29175122]
[1760137648252,1.32897793,1097.3,1092.5,1.29175122]
[1760137648751,1.32897793,1097.5,1092.5,1.29175122]
[1760137648950,1.32897793,1097.3,1092.3,1.29175122]
[1760137649152,1.32897793,1097.5,1092.4,1.29175122]
[1760137649551,1.32897793,1097.5,1092.5,1.29175122]
[1760137650248,1.32897793,1097.1,1092.5,1.29175122]
[1760137650450,1.32897793,1097.0,1092.4,1.29175122]
[1760137650649,0.15896399,1096.3,1092.8,1.29175122]
[1760137650848,0.15896399,1096.3,1092.7,1.29175122]
[1760137651049,2.21496322,1098.3,1092.5,1.13281482]
[1760137651254,2.21496322,1097.9,1092.2,2.14771788]
[1760137651556,2.21496322,1097.9,1091.2,2.14771788]